bitfinex-derivatives/quotes_SOLF0:USTF0_20250924
["timestamp","ask_amount","ask_price","bid_price","bid_amount"]
[1758729494090,7.21,213.93,213.85,4.2062]
[1758729495690,11.4149,213.93,213.85,4.2062]
[1758729495896,11.4149,213.93,213.76,73.8752]
[1758729495897,7.21,213.93,213.78,7.55]
[1758729496106,65.4141,213.92,213.78,7.55]
[1758729496290,7.21,213.86,213.79,4.2075]
[1758729497694,7.21,213.86,213.77,4.208]
[1758729498094,7.21,213.86,213.78,4.2076]
[1758729498399,7.21,213.94,213.8,65.448]
[1758729498598,82.72,213.91,213.81,7.55]
[1758729498801,82.72,213.91,213.84,4.2066]
[1758729499902,118.5,213.92,213.84,4.2066]
[1758729500590,122.705,213.92,213.81,11.757]
[1758729500801,118.5,213.92,213.81,7.55]
[1758729500991,65.4283,213.87,213.71,4.209]
[1758729501197,65.4476,213.81,213.62,65.504]
[1758729501402,8.52475907,213.76,213.55,65.5256]
[1758729501599,7.21,213.72,213.56,4.212]
[1758729501801,7.21,213.7,213.56,4.212]
[1758729502103,118.5,213.69,213.53,11.7626]
[1758729502294,7.21,213.7,213.52,65.5344]
[1758729502295,7.21,213.7,213.54,65.5288]
[1758729502492,118.52,213.69,213.55,7.55]
[1758729502695,118.5,213.68,213.55,11.7622]
[1758729502893,118.5,213.68,213.56,65.5223]
[1758729503301,118.52,213.72,213.62,7.55]
[1758729503504,7.21,213.76,213.65,7.55]
[1758729504391,7.21,213.76,213.67,4.2098]
[1758729504897,7.21,213.76,213.69,4.2095]
[1758729505400,118.56,213.8,213.69,65.4826]
[1758729505599,118.56,213.8,213.71,4.2091]
[1758729506200,118.56,213.8,213.69,7.76]
[1758729506602,7.9,213.81,213.69,7.76]
[1758729506804,118.72,213.79,213.69,11.9694]
[1758729507206,7.9,213.78,213.64,73.258]
[1758729507504,7.9,213.78,213.65,65.4947]
[1758729507903,7.9,213.78,213.68,4.2097]
[1758729508295,7.9,213.78,213.65,65.4947]
[1758729508296,7.9,213.78,213.66,65.4904]
[1758729508499,7.9,213.78,213.71,4.2091]
[1758729508700,7.9,213.78,213.68,7.76]
[1758729509101,7.9,213.78,213.69,65.4828]
[1758729509302,7.9,213.78,213.7,65.4797]
[1758729509504,118.7,213.8,213.7,65.4797]
[1758729509898,118.7,213.8,213.68,7.76]
[1758729510100,118.7,213.8,213.68,73.2451]
[1758729510508,118.7,213.8,213.69,65.4824]
[1758729511007,118.7,213.8,213.7,65.4789]
[1758729512205,118.7,213.8,213.73,4.2087]
[1758729512402,127.41448282,213.8,213.68,73.2451]
[1758729512900,127.41448282,213.8,213.64,65.498]
[1758729512901,3.22011941,213.79,213.64,65.498]
[1758729513103,7.9,213.77,213.62,7.76]
[1758729513302,7.9,213.75,213.65,4.2103]
[1758729513606,7.9,213.75,213.63,65.5007]
[1758729513804,7.9,213.75,213.64,65.4961]
[1758729514001,7.9,213.75,213.69,4.2095]
[1758729514201,52.8,213.76,213.67,65.4869]
[1758729514507,52.8,213.76,213.66,65.4919]
[1758729514705,52.8,213.76,213.67,7.76]
[1758729515008,52.8,213.76,213.68,65.4844]
[1758729515410,60.7,213.76,213.72,4.2089]
[1758729515803,60.7,213.76,213.67,7.76]
[1758729516004,60.7,213.76,213.71,4.2092]
[1758729516406,60.7,213.76,213.67,7.76]
[1758729516810,0.81448282,213.8,213.67,7.76]
[1758729516811,0.81448282,213.8,213.7,65.4789]
[1758729517104,0.81448282,213.8,213.68,65.4849]
[1758729517309,7.9,213.79,213.67,7.76]
[1758729518610,7.9,213.79,213.71,4.2091]
[1758729519509,7.9,213.79,213.68,65.485]
[1758729519510,7.9,213.79,213.7,65.4779]
[1758729520206,3.55515678,213.78,213.71,4.2091]
[1758729520412,3.55515678,213.77,213.71,4.2091]
[1758729520606,7.9,213.75,213.71,4.2091]
[1758729520810,3.55515678,213.74,213.71,4.2091]
[1758729521007,3.55515678,213.73,213.71,4.2091]
[1758729521205,0.81448282,213.8,213.69,65.4809]
[1758729521512,3.55461846,213.79,213.7,7.76]
[1758729521710,3.55461846,213.78,213.7,7.76]
[1758729521908,3.55461846,213.77,213.72,4.209]
[1758729522215,3.55461846,213.76,213.72,4.209]
[1758729522412,3.55461846,213.75,213.72,4.209]
[1758729522708,3.55461846,213.74,213.72,4.209]
[1758729522910,0.81448282,213.8,213.73,4.2086]
[1758729523113,3.55424582,213.79,213.73,4.2086]
[1758729523311,3.55424582,213.78,213.75,4.2084]
[1758729523614,3.55424582,213.77,213.75,4.2084]
[1758729523913,3.55424582,213.76,213.75,11.9684]
[1758729524114,3.55424582,213.76,213.75,7.76]
[1758729524414,3.55424582,213.76,213.72,11.9688]
[1758729524603,3.55424582,213.75,213.72,11.9688]
[1758729524802,0.81448282,213.8,213.72,11.9688]
[1758729525007,3.5538567,213.79,213.72,11.9688]
[1758729525210,11.4538567,213.78,213.67,7.76]
[1758729525413,3.5538567,213.77,213.67,7.76]
[1758729525606,7.9,213.76,213.62,65.5014]
[1758729525813,4.2086,213.74,213.62,65.5014]
[1758729526016,3.5538567,213.73,213.62,65.5014]
[1758729526208,3.5538567,213.72,213.61,73.2669]
[1758729526510,3.5538567,213.71,213.61,73.2669]
[1758729526712,3.5538567,213.7,213.61,7.76]
[1758729526910,3.55260184,213.69,213.61,7.76]
[1758729527110,3.55260184,213.68,213.56,73.2818]
[1758729527415,3.55260184,213.68,213.61,4.2111]
[1758729528110,3.55260184,213.68,213.6,73.2696]
[1758729528519,3.55260184,213.68,213.64,4.2104]
[1758729529513,3.55260184,213.68,213.61,4.2111]
[1758729529910,3.55260184,213.68,213.55,7.76]
[1758729530106,3.55260184,213.67,213.55,7.76]
[1758729530307,3.55260184,213.66,213.55,7.76]
[1758729530513,11.45260184,213.65,213.6,4.2112]
[1758729530809,3.55260184,213.64,213.6,4.2112]
[1758729531008,3.55260184,213.64,213.55,7.76]
[1758729531206,3.55260184,213.63,213.55,7.76]
[1758729531408,7.9,213.67,213.55,7.76]
[1758729531409,3.55260184,213.62,213.55,7.76]
[1758729531616,3.55260184,213.61,213.55,7.76]
[1758729531818,7.9,213.67,213.55,7.76]
[1758729532020,3.55546258,213.66,213.58,4.2116]
[1758729532216,3.55546258,213.65,213.55,7.76]
[1758729532417,3.55546258,213.64,213.55,7.76]
[1758729532618,3.55546258,213.63,213.58,65.5159]
[1758729532818,3.55546258,213.62,213.59,7.76]
[1758729533019,3.55546258,213.61,213.6,7.76]
[1758729533219,7.9,213.66,213.55,7.76]
[1758729533422,3.55546258,213.65,213.55,7.76]
[1758729533614,3.55546258,213.64,213.55,7.76]
[1758729533818,3.55546258,213.63,213.56,7.5]
[1758729534122,3.55546258,213.62,213.56,7.5]
[1758729534323,3.55546258,213.61,213.55,7.5]
[1758729534525,3.55546258,213.6,213.54,7.5]
[1758729534826,3.55546258,213.59,213.56,11.712]
[1758729535022,3.55546258,213.58,213.56,11.712]
[1758729535218,3.55546258,213.57,213.56,11.712]
[1758729535620,3.5582921,213.64,213.57,4.2118]
[1758729535815,3.5582921,213.63,213.56,7.5]
[1758729536020,3.5582921,213.62,213.56,7.5]
[1758729536220,16.62569453,213.65,213.51,65.5369]
[1758729536221,3.5582921,213.61,213.57,11.7118]
[1758729536420,3.5582921,213.6,213.55,65.5249]
[1758729536621,3.5582921,213.59,213.56,7.5]
[1758729536822,9.21e-05,213.58,213.57,7.5]
[1758729537121,5.13519453,213.67,213.6,7.5]
[1758729537526,5.13519453,213.67,213.61,65.5074]
[1758729537723,5.13519453,213.68,213.61,65.5074]
[1758729538024,5.13519453,213.68,213.64,4.2104]
[1758729538229,5.13519453,213.67,213.6,7.5]
[1758729538531,5.13519453,213.67,213.65,4.2102]
[1758729539221,5.13519453,213.67,213.6,7.5]
[1758729540322,5.13519453,213.66,213.6,7.5]
[1758729540521,5.13519453,213.66,213.54,72.8779]
[1758729540824,5.13519453,213.63,213.56,65.5221]
[1758729541022,5.13519453,213.64,213.61,4.211]
[1758729541222,5.13519453,213.64,213.58,72.8659]
[1758729541426,5.13519453,213.65,213.58,72.8659]
[1758729541621,5.13519453,213.65,213.58,7.35]
[1758729541930,5.13519453,213.65,213.51,73.9612]
[1758729541931,5.13519453,213.63,213.54,65.5286]
[1758729542123,5.13519453,213.63,213.6,4.2112]
[1758729543125,12.84519453,213.62,213.56,7.35]
[1758729543331,12.84519453,213.62,213.52,65.5338]
[1758729543923,12.84519453,213.62,213.51,72.8852]
[1758729544328,12.84519453,213.62,213.52,65.5338]
[1758729544529,12.84519453,213.62,213.54,65.5286]
[1758729545031,5.13519453,213.62,213.55,7.35]
[1758729546327,5.13519453,213.62,213.56,65.5223]
[1758729547235,5.13519453,213.62,213.55,72.8748]
[1758729547536,5.13519453,213.62,213.55,7.35]
[1758729548132,7.71,213.62,213.58,4.2116]
[1758729548333,12.84519453,213.63,213.51,72.8852]
[1758729548532,12.84519453,213.63,213.52,65.535]
[1758729548729,3.54987944,213.62,213.57,4.2118]
[1758729548930,11.25987944,213.61,213.57,4.2118]
[1758729549131,3.54987944,213.6,213.57,4.2118]
[1758729549331,3.54987944,213.59,213.57,4.2118]
[1758729549527,3.54987944,213.58,213.57,4.2118]
[1758729549730,3.54987944,213.58,213.57,11.5618]
[1758729550233,99.41,213.66,213.58,4.2115]
[1758729550433,4.42317823,213.65,213.53,7.35]
[1758729550735,12.13329143,213.64,213.53,7.35]
[1758729550933,3.25273855,213.63,213.53,7.35]
[1758729551126,3.25273855,213.62,213.53,7.35]
[1758729551327,3.25245124,213.61,213.53,7.35]
[1758729551634,4.2109,213.63,213.56,4.212]
[1758729551833,3.25245454,213.62,213.56,4.212]
[1758729552034,3.25245454,213.61,213.57,4.2118]
[1758729552333,7.71,213.63,213.53,72.881]
[1758729552532,3.2523883,213.62,213.53,7.35]
[1758729552734,3.2523883,213.61,213.53,72.8814]
[1758729553033,7.71,213.63,213.53,72.8814]
[1758729553231,3.25220531,213.62,213.53,72.8814]
[1758729553433,3.25220531,213.61,213.53,72.8814]
[1758729553634,7.71,213.63,213.54,65.5286]
[1758729553828,7.71,213.61,213.47,7.35]
[1758729554028,11.9219,213.58,213.51,4.213]
[1758729554228,3.2520729,213.57,213.47,72.8998]
[1758729554431,7.71,213.58,213.48,65.5469]
[1758729554630,3.25088509,213.57,213.48,65.5469]
[1758729554832,7.71,213.58,213.48,65.5469]
[1758729555028,3.25074279,213.57,213.48,65.5469]
[1758729555231,7.71,213.58,213.47,7.35]
[1758729556034,7.71,213.56,213.47,7.35]
[1758729556235,3.24951544,213.55,213.47,7.35]
[1758729556538,3.24951544,213.54,213.47,7.35]
[1758729556738,7.71,213.56,213.43,7.35]
[1758729556939,3.24831713,213.55,213.43,7.35]
[1758729557135,3.24831713,213.54,213.49,7.35]
[1758729557339,126.35,213.58,213.49,7.35]
[1758729557540,3.24772068,213.57,213.49,7.35]
[1758729557735,126.35,213.58,213.49,7.35]
[1758729558041,7.71,213.58,213.5,65.54]
[1758729558236,7.71,213.58,213.54,4.2124]
[1758729558641,5.13519453,213.67,213.56,4.2121]
[1758729558943,7.71,213.65,213.52,72.884]
[1758729559132,3.24896614,213.64,213.52,72.884]
[1758729559738,7.71,213.63,213.52,7.35]
[1758729560041,7.71,213.61,213.48,72.8966]
[1758729560345,3.24896614,213.6,213.48,72.8966]
[1758729560948,5.32263664,213.54,213.41,7.35]
[1758729561437,35.1,213.53,213.46,4.2139]
[1758729562138,35.1,213.53,213.48,4.2137]
[1758729562339,35.1,213.53,213.43,7.35]
[1758729562735,7.71,213.53,213.48,4.2136]
[1758729562938,5.32263664,213.57,213.46,7.35]
[1758729563138,7.71,213.65,213.57,4.2118]
[1758729563340,5.32263664,213.64,213.53,7.35]
[1758729563540,7.71,213.63,213.53,7.35]
[1758729563735,7.59,213.59,213.46,7.55]
[1758729563940,113.0519,213.58,213.5,4.2132]
[1758729565046,4.2119,213.58,213.5,4.2132]
[1758729565242,118.98,213.57,213.5,4.2132]
[1758729565546,118.98,213.57,213.48,4.2135]
[1758729565840,7.59,213.55,213.46,7.55]
[1758729566042,4.2127,213.54,213.47,4.2138]
[1758729566441,7.59,213.55,213.47,4.2138]
[1758729566644,7.59,213.55,213.46,7.55]
[1758729566947,118.88,213.56,213.46,7.55]
[1758729567143,118.88,213.56,213.49,4.2135]
[1758729567349,7.59,213.55,213.49,4.2135]
[1758729567845,7.59,213.55,213.47,4.2139]
[1758729568047,7.59,213.55,213.42,7.55]
[1758729568243,7.70475698,213.65,213.39,340.94]
[1758729568244,7.59,213.63,213.51,7.55]
[1758729568445,11.8009,213.63,213.55,4.2122]
[1758729568951,7.59,213.59,213.51,7.55]
[1758729569147,94.78,213.58,213.51,7.55]
[1758729570249,94.78,213.58,213.52,4.2129]
[1758729570447,94.78,213.58,213.51,7.55]
[1758729570746,102.37,213.58,213.53,4.2125]
[1758729570939,7.59,213.57,213.53,4.2125]
[1758729571847,7.59,213.57,213.51,11.7631]
[1758729572150,7.59,213.57,212.94,86.68887115]
[1758729572151,7.59,213.57,213.45,7.55]
[1758729572647,7.59,213.57,213.49,65.5439]
[1758729572850,28.46,213.61,213.49,73.0939]
[1758729573051,1.17076583,213.6,213.49,7.55]
[1758729573350,1.17076583,213.59,213.53,4.2126]
[1758729573552,28.46,213.61,213.53,4.2126]
[1758729573745,1.17076675,213.6,213.53,4.2126]
[1758729573949,1.17076675,213.59,213.53,4.2126]
[1758729574249,1.1707835,213.58,213.5,4.2131]
[1758729574449,4.2125,213.54,213.44,7.55]
[1758729574750,4.2125,213.54,213.47,4.2138]
[1758729574950,7.59,213.55,213.47,4.2138]
[1758729575148,3.25037512,213.54,213.47,7.55]
[1758729575342,3.25037512,213.53,213.48,4.2135]
[1758729575546,7.59,213.56,213.48,4.2135]
[1758729575851,4.42131624,213.55,213.47,7.55]
[1758729576052,3.25035563,213.54,213.47,7.55]
[1758729576350,4.2134,213.5,213.43,4.2146]
[1758729576554,3.25035563,213.49,213.41,7.55]
[1758729577148,3.25035563,213.49,213.39,65.5737]
[1758729577346,58.02,213.55,213.44,65.5585]
[1758729577550,3.25140725,213.54,213.43,65.5613]
[1758729577747,3.25140725,213.53,213.43,65.5613]
[1758729577948,58.02,213.55,213.46,7.55]
[1758729578150,3.25154521,213.54,213.46,73.1005]
[1758729578348,119.66,213.56,213.46,73.1005]
[1758729578548,3.25168902,213.55,213.46,73.1005]
[1758729578757,3.25168902,213.54,213.51,11.763]
[1758729578957,119.66,213.57,213.51,4.213]
[1758729579253,3.25167798,213.56,213.51,11.763]
[1758729579455,3.25167798,213.55,213.51,11.763]
[1758729579649,119.62,213.58,213.37,65.5808]
[1758729579848,8.63487213,213.57,213.44,65.5595]
[1758729580057,3.25190467,213.56,213.45,65.5561]
[1758729580252,119.62,213.58,213.51,4.213]
[1758729580757,123.8318,213.58,213.49,4.2135]
[1758729580952,8.76087644,213.57,213.46,7.55]
[1758729581153,1.17087644,213.56,213.46,7.55]
[1758729581354,4.2125,213.55,213.47,4.2137]
[1758729581561,7.59,213.57,213.46,7.55]
[1758729581755,120.7509983,213.56,213.46,7.55]
[1758729581958,119.58,213.56,213.5,4.2133]
[1758729582349,7.59,213.55,213.41,73.1167]
[1758729582555,7.59,213.55,213.43,73.1121]
[1758729582847,7.59,213.55,213.44,65.5589]
[1758729583358,11.8024,213.55,213.43,73.1115]
[1758729583656,7.59,213.55,213.49,4.2133]
[1758729583858,7.59,213.55,213.46,65.5527]
[1758729584151,127.39,213.55,213.46,65.5527]
[1758729584356,119.8,213.55,213.47,65.5496]
[1758729584661,119.8,213.55,213.48,7.55]
[1758729584954,340.98,213.6,213.49,65.5416]
[1758729585160,340.98,213.6,213.5,7.55]
[1758729585453,340.98,213.6,213.55,4.2122]
[1758729585654,348.57,213.6,213.55,4.2122]
[1758729585856,348.57,213.6,213.52,65.5347]
[1758729586159,340.98,213.6,213.53,7.55]
[1758729586458,19.19519453,213.67,213.52,65.5347]
[1758729586459,10.45783117,213.7,213.55,65.5255]
[1758729586658,128.54048662,213.69,213.56,7.55]
[1758729586862,1.17048662,213.68,213.56,7.55]
[1758729587055,1.17048662,213.67,213.56,7.55]
[1758729587355,7.59,213.65,213.51,65.5378]
[1758729587554,78.39048662,213.64,213.52,7.55]
[1758729587756,1.17048662,213.63,213.55,4.2122]
[1758729589261,1.17048662,213.63,213.53,65.5317]
[1758729589561,119.96,213.62,213.53,65.5317]
[1758729589863,5.13519453,213.69,213.58,7.55]
[1758729590063,1.17044903,213.68,213.58,7.55]
[1758729590262,18.04783117,213.7,213.58,7.55]
[1758729590263,121.07044903,213.67,213.58,7.55]
[1758729590457,1.17042302,213.66,213.58,7.55]
[1758729590654,119.9,213.67,213.58,11.7617]
[1758729590860,1.17042301,213.66,213.58,7.55]
[1758729591060,119.9,213.67,213.58,7.55]
[1758729591364,1.17042286,213.66,213.58,7.55]
[1758729591562,119.9,213.67,213.58,7.55]
[1758729591858,1.17037718,213.66,213.59,7.55]
[1758729592065,108.62,213.69,213.59,7.55]
[1758729592263,1.17034429,213.68,213.59,7.55]
[1758729592464,108.62,213.69,213.59,7.55]
[1758729592654,1.17030699,213.68,213.63,11.7606]
[1758729592968,108.62,213.69,213.62,7.55]
[1758729593269,108.62,213.69,213.64,11.7604]
[1758729593565,116.21,213.69,213.64,7.55]
[1758729593963,7.59,213.69,213.58,7.41]
[1758729594563,1.17036875,213.68,213.58,7.41]
[1758729594763,7.59,213.69,213.58,7.41]
[1758729595764,119.9,213.68,213.6,4.2113]
[1758729595962,119.9,213.68,213.58,7.41]
[1758729596261,341.0,213.72,213.61,7.41]
[1758729596466,341.0,213.72,213.65,4.2102]
[1758729596467,121.01020405,213.71,213.65,4.2102]
[1758729596765,119.84,213.71,213.65,4.2102]
[1758729597663,119.84,213.71,213.67,4.2099]
[1758729597856,460.78,213.72,213.67,11.6199]
[1758729598261,468.11,213.72,213.64,4.2105]
[1758729598456,468.11,213.72,213.63,7.41]
[1758729598868,472.3191,213.72,213.63,7.41]
[1758729599077,460.78,213.72,213.63,72.9106]
[1758729600371,341.0,213.72,213.68,4.2096]
[1758729600570,7.33,213.76,213.69,7.77]
[1758729602372,5.17050155,213.86,213.69,7.77]
[1758729602571,406.25,213.87,213.69,7.77]
[1758729602572,66.60413693,213.85,213.69,7.77]
[1758729602770,65.4423,213.83,213.69,7.77]
[1758729602971,128.30973693,213.82,213.69,7.77]
[1758729603174,7.54,213.79,213.69,7.77]
[1758729603663,11.7477,213.79,213.69,11.9794]
[1758729603862,7.54,213.79,213.69,7.77]
[1758729605665,7.54,213.79,213.62,7.77]
[1758729605869,4.2087,213.74,213.62,7.77]
[1758729606073,98.54,213.74,213.64,7.77]
[1758729606473,98.54,213.74,213.68,4.2096]
[1758729606674,7.54,213.75,213.68,4.2096]
[1758729607074,88.54,213.75,213.68,4.2096]
[1758729607275,126.94,213.75,213.68,4.2096]
[1758729607475,126.94,213.75,213.65,4.2103]
[1758729607675,126.94,213.75,213.64,7.77]
[1758729607869,7.54,213.75,213.65,65.4948]
[1758729608075,7.54,213.75,213.66,7.77]
[1758729608274,119.36,213.77,213.71,4.209]
[1758729608477,119.36,213.77,213.69,7.77]
[1758729608775,7.54,213.8,213.72,4.2088]
[1758729608977,119.36,213.78,213.72,4.2088]
[1758729609171,119.36,213.79,213.69,7.77]
[1758729609371,7.54,213.78,213.69,7.77]
[1758729609975,7.54,213.78,213.71,4.209]
[1758729610275,4.2081,213.77,213.69,7.77]
[1758729610674,119.36,213.79,213.65,65.4942]
[1758729610675,4.2084,213.76,213.65,7.77]
[1758729610866,7.54,213.75,213.65,7.77]
[1758729612074,7.54,213.75,213.65,73.2642]
[1758729612378,126.8,213.75,213.66,7.77]
[1758729612976,126.8,213.75,213.68,7.77]
[1758729612977,119.26,213.75,213.68,7.77]
[1758729613376,7.54,213.74,213.68,7.77]
[1758729613678,7.54,213.74,213.64,7.77]
[1758729613872,119.26,213.75,213.67,7.77]
[1758729614273,7.54,213.78,213.67,7.77]
[1758729614574,78.78,213.77,213.67,7.77]
[1758729614777,119.18,213.77,213.67,7.77]
[1758729615174,119.16,213.79,213.73,4.2086]
[1758729615382,126.7,213.79,213.67,7.77]
[1758729617174,4.2083,213.76,213.68,4.2096]
[1758729617479,7.54,213.75,213.67,7.77]
[1758729617680,7.54,213.75,213.62,7.77]
[1758729618275,4.2087,213.74,213.64,4.2104]
[1758729618479,7.54,213.75,213.62,7.77]
[1758729618674,73.0056,213.75,213.62,7.77]
[1758729618874,7.54,213.76,213.62,7.77]
[1758729619180,7.54,213.74,213.62,7.77]
[1758729619384,4.2093,213.71,213.63,4.2106]
[1758729619583,11.7493,213.71,213.62,7.77]
[1758729619882,58.02,213.75,213.66,4.2101]
[1758729620081,7.54,213.74,213.62,7.77]
[1758729620485,7.54,213.72,213.63,4.2106]
[1758729620785,7.54,213.72,213.62,7.77]
[1758729620972,4.2095,213.7,213.63,4.2107]
[1758729621581,4.2095,213.7,213.64,4.2104]
[1758729621778,7.54,213.72,213.62,7.77]
[1758729622588,11.7491,213.72,213.65,4.2102]
[1758729623284,4.2093,213.71,213.65,4.2102]
[1758729623484,7.54,213.7,213.63,4.2107]
[1758729623883,7.54,213.7,213.58,7.77]
[1758729624288,7.76,213.68,213.58,7.77]
[1758729624487,4.2103,213.66,213.58,7.77]
[1758729624784,7.76,213.68,213.59,4.2114]
[1758729625586,65.4913,213.67,213.5,7.62]
[1758729625783,187.7322,213.66,213.5,7.62]
[1758729625976,122.24,213.66,213.5,7.62]
[1758729626279,126.62,213.66,213.54,7.62]
[1758729626483,126.62,213.66,213.58,4.2116]
[1758729627182,126.62,213.66,213.59,4.2114]
[1758729627384,126.62,213.66,213.57,73.1391]
[1758729627582,7.76,213.66,213.57,73.1391]
[1758729627782,7.76,213.66,213.62,7.62]
[1758729628186,7.76,213.66,213.61,4.211]
[1758729628393,7.76,213.67,213.58,7.62]
[1758729628984,118.84,213.68,213.62,4.2109]
[1758729629184,118.86,213.68,213.62,4.2109]
[1758729629385,118.86,213.68,213.59,65.5124]
[1758729629891,118.86,213.68,213.58,7.62]
[1758729630299,118.86,213.68,213.6,4.2112]
[1758729630797,7.76,213.67,213.5,65.5404]
[1758729631097,7.76,213.65,213.53,7.62]
[1758729631795,7.76,213.59,213.47,7.62]
[1758729631991,118.86,213.58,213.47,7.62]
[1758729632399,7.76,213.56,213.43,65.5624]
[1758729632701,120.55081561,213.55,213.47,4.2139]
[1758729632998,7.76,213.56,213.45,7.62]
[1758729632999,127.14,213.56,213.45,7.62]
[1758729633392,119.38,213.57,213.49,73.1639]
[1758729633592,119.38,213.58,213.49,73.1639]
[1758729634201,119.38,213.58,213.49,7.62]
[1758729634598,7.76,213.57,213.5,4.2133]
[1758729635196,7.76,213.57,213.49,7.62]
[1758729637099,7.76,213.57,213.5,4.2131]
[1758729637298,7.76,213.57,213.49,7.62]
[1758729637900,7.76,213.57,213.48,4.2136]
[1758729638298,4.2122,213.56,213.45,11.8342]
[1758729638503,7.76,213.57,213.39,65.5745]
[1758729638504,7.76,213.51,213.39,65.5745]
[1758729638693,56.74,213.51,213.39,65.5745]
[1758729639199,56.74,213.51,213.43,4.2145]
[1758729639405,56.74,213.51,213.38,7.62]
[1758729640105,3.37800429,213.5,213.42,4.2148]
[1758729640298,3.37800429,213.5,213.38,7.62]
[1758729641108,7.76,213.49,213.38,7.62]
[1758729641905,7.76,213.49,213.41,4.215]
[1758729642097,3.37800429,213.47,213.38,7.62]
[1758729642999,7.76,213.46,213.38,7.62]
[1758729643801,7.76,213.46,213.4,4.2151]
[1758729644203,7.76,213.46,213.38,73.1971]
[1758729644406,7.76,213.46,213.42,4.2148]
[1758729645803,122.37800429,213.48,213.42,4.2148]
[1758729646008,130.13800429,213.48,213.42,4.2148]
[1758729646509,130.13800429,213.48,213.38,7.62]
[1758729647209,130.13800429,213.48,213.4,4.2151]
[1758729647606,130.13800429,213.48,213.43,4.2147]
[1758729647806,7.76,213.47,213.43,4.2147]
[1758729648010,122.25800429,213.48,213.38,73.1968]
[1758729648206,122.25800429,213.48,213.42,4.2147]
[1758729649408,3.37800429,213.48,213.42,4.2147]
[1758729649608,122.25800429,213.48,213.42,4.2147]
[1758729649909,122.23800429,213.48,213.42,4.2147]
[1758729651314,3.37800429,213.48,213.42,4.2147]
[1758729651616,7.76,213.46,213.42,4.2147]
[1758729651816,76.98,213.47,213.42,4.2147]
[1758729652015,3.37800429,213.48,213.4,4.2152]
[1758729652214,126.62,213.47,213.38,7.62]
[1758729652608,7.76,213.46,213.34,10.99800429]
[1758729653120,126.64,213.46,213.34,7.62]
[1758729654220,126.64,213.46,213.36,72.9438]
[1758729654421,7.76,213.46,213.38,65.5772]
[1758729654620,62.64,213.48,213.4,65.5715]
[1758729655115,118.88,213.5,213.4,65.5715]
[1758729655415,118.88,213.5,213.42,65.5656]
[1758729655724,7.86,213.53,213.45,65.5556]
[1758729655924,7.86,213.53,213.47,65.5495]
[1758729656125,118.88,213.55,213.51,7.36]
[1758729656512,3.37800429,213.63,213.51,65.5368]
[1758729656722,126.74,213.62,213.54,4.2125]
[1758729657021,126.74,213.62,213.52,65.5349]
[1758729657522,126.74,213.62,213.53,65.5312]
[1758729657720,7.86,213.67,213.56,65.522]
[1758729657921,118.88,213.66,213.55,65.5255]